bitfinex-derivatives/quotes_BNBF0:USTF0_20250126
["timestamp","ask_amount","ask_price","bid_price","bid_amount"]
[1737932361217,0.86045437,673.64,672.05,0.27289054]
[1737932361415,0.86045437,673.64,672.06,0.27289054]
[1737932361617,0.86045437,673.63,672.07,0.27289054]
[1737932361913,0.86045437,673.63,672.08,0.27289054]
[1737932362216,0.86045437,673.62,672.09,0.27289054]
[1737932362415,0.86045437,673.65,672.1,0.27289054]
[1737932362611,0.86045437,673.65,672.11,0.27289054]
[1737932362916,0.86045437,673.65,672.12,0.27289054]
[1737932363216,0.29688566,673.66,672.13,0.27289054]
[1737932363217,0.86045437,673.64,672.13,0.27289054]
[1737932363418,0.86045437,673.64,672.14,0.27289054]
[1737932363611,0.86045437,673.64,672.15,0.27289054]
[1737932363809,0.86045437,673.64,672.16,0.27289054]
[1737932364014,0.86045437,673.63,672.17,0.27289054]
[1737932364314,0.86045437,673.63,672.18,0.27289054]
[1737932364514,0.86045437,673.62,672.19,0.27289054]
[1737932364713,0.86045437,673.62,672.2,0.27289054]
[1737932364911,0.86045437,673.62,672.21,0.27289054]
[1737932365110,0.86045437,673.61,672.22,0.27289054]
[1737932365411,0.86045437,673.6,672.22,0.27289054]
[1737932365812,0.86045437,673.6,672.23,0.27289054]
[1737932366011,0.86045437,673.6,672.1,0.29757476]
[1737932366012,0.86045437,673.59,672.24,0.27289054]
[1737932366215,0.86045437,673.59,672.25,0.27289054]
[1737932366417,0.86045437,673.59,672.26,0.27289054]
[1737932366715,0.86045437,673.58,672.1,0.29757476]
[1737932366914,0.29692533,673.57,672.11,0.27299869]
[1737932367114,0.29692533,673.57,672.1,0.29757476]
[1737932367115,0.29692533,673.57,672.12,0.27299869]
[1737932367314,0.86045437,673.56,672.13,0.27299869]
[1737932367511,0.29693415,673.55,672.14,0.27299869]
[1737932367712,0.29693415,673.55,672.15,0.27299869]
[1737932367917,0.86045437,673.54,672.16,0.27299869]
[1737932368116,0.86045437,673.54,672.17,0.27299869]
[1737932368317,0.86045437,673.54,672.18,0.27299869]
[1737932368617,0.86045437,673.54,672.14,0.29755705]
[1737932368618,0.29694297,673.53,672.19,0.27298206]
[1737932368817,0.29694297,673.53,672.2,0.27298206]
[1737932369118,0.29694297,673.53,672.21,0.27298206]
[1737932369119,0.86045437,673.52,672.21,0.27298206]
[1737932369417,0.86045437,673.52,672.22,0.27298206]
[1737932369617,0.86045437,673.52,672.23,0.27298206]
[1737932369818,0.29694297,673.53,672.24,0.27298206]
[1737932370018,0.29694297,673.53,672.25,0.27298206]
[1737932370219,0.29694297,673.53,672.26,0.27298206]
[1737932370419,0.29694297,673.53,672.27,0.27298206]
[1737932370615,0.29694297,673.53,672.28,0.27298206]
[1737932370816,0.29694297,673.53,672.29,0.27298206]
[1737932371120,0.29694297,673.53,672.3,0.27298206]
[1737932371321,0.29694297,673.53,672.31,0.99852186]
[1737932371521,0.29694297,673.53,672.32,0.27298206]
[1737932371723,0.29694297,673.53,672.33,0.27298206]
[1737932372123,0.29694297,673.53,672.34,0.29746854]
[1737932372722,0.29694297,673.53,672.34,0.5704506]
[1737932372922,0.29694297,673.53,672.35,0.27298206]
[1737932373221,0.29694297,673.53,672.36,0.57044175]
[1737932373424,0.29694297,673.53,672.37,0.57043733]
[1737932373622,0.29694297,673.53,672.38,0.5704329]
[1737932373823,0.29694297,673.53,672.39,0.57042848]
[1737932374025,0.29694297,673.53,672.4,0.27298206]
[1737932374219,0.29694297,673.53,672.41,0.27298206]
[1737932374421,0.29694297,673.53,672.42,0.27298206]
[1737932374717,0.29694297,673.53,672.43,0.27290812]
[1737932374922,0.29694297,673.53,672.44,0.27290812]
[1737932375222,0.29694297,673.53,672.4,1.10768918]
[1737932375223,0.29694297,673.53,672.45,0.27290812]
[1737932375422,0.29694297,673.53,672.41,0.27290812]
[1737932375721,0.29694297,673.53,672.42,0.27290812]
[1737932375922,0.29694297,673.53,672.43,0.27290812]
[1737932376124,0.29694297,673.53,672.44,0.27290812]
[1737932376417,0.29694297,673.53,672.45,0.27290812]
[1737932376625,0.29694297,673.53,672.4,1.10768918]
[1737932376826,0.29694297,673.53,672.41,0.2729066]
[1737932377118,0.29694297,673.53,672.42,0.2729066]
[1737932377324,0.29694297,673.53,672.43,0.2729066]
[1737932377518,0.29694297,673.53,672.44,0.2729066]
[1737932377719,0.29694297,673.53,672.45,0.2729066]
[1737932377915,0.29694297,673.53,672.46,0.2729066]
[1737932378118,0.29694297,673.53,672.47,0.2729066]
[1737932378317,0.29694297,673.53,672.41,0.2729066]
[1737932378519,0.29694297,673.53,672.42,0.27290034]
[1737932379328,0.29694297,673.53,672.43,0.29742872]
[1737932379520,1.08678414,674.7,672.44,0.27290034]
[1737932379726,0.29647637,674.59,672.45,0.27290034]
[1737932379924,0.29647637,674.59,672.46,0.27290034]
[1737932380126,0.29647637,674.59,672.47,0.27290034]
[1737932380322,0.29647637,674.59,672.48,0.27290034]
[1737932380526,0.86603188,674.58,672.49,0.27290034]
[1737932380728,0.86603188,674.58,672.5,0.27290034]
[1737932381030,0.86603188,674.58,672.51,0.27290034]
[1737932381226,0.86603188,674.57,672.52,0.27290034]
[1737932381425,0.86603188,674.57,672.53,0.27290034]
[1737932381627,0.86603188,674.57,672.54,1.10768918]
[1737932381820,0.86603188,674.56,672.55,0.27290034]
[1737932382026,0.86603188,674.56,672.56,0.27290034]
[1737932382226,0.86603188,674.55,672.57,0.27290034]
[1737932382426,0.86603188,674.55,672.58,0.27290034]
[1737932382726,0.86603188,674.54,672.59,0.27290034]
[1737932382924,0.86603188,674.54,672.6,0.27290034]
[1737932383125,0.86603188,674.54,672.61,0.27290034]
[1737932383321,0.86603188,674.53,672.62,0.27290034]
[1737932383527,0.86603188,674.53,672.63,0.57024063]
[1737932383826,0.86603188,674.53,672.64,0.27290034]
[1737932384027,0.86603188,674.52,672.65,0.27290034]
[1737932384226,0.86603188,674.52,672.66,0.27290034]
[1737932384423,0.86603188,674.52,672.67,0.27290034]
[1737932384630,0.86603188,674.51,672.77,1.10768918]
[1737932384923,0.86603188,674.5,672.78,0.27290034]
[1737932385127,0.86603188,674.5,672.79,0.27290034]
[1737932385628,0.86603188,674.49,672.79,0.27290034]
[1737932386029,0.86603188,674.48,672.79,0.27290034]
[1737932386229,0.86603188,674.48,672.78,0.27290034]
[1737932386528,0.86603188,674.48,672.79,0.27290034]
[1737932386729,0.86603188,674.48,672.78,0.27290034]
[1737932387030,0.29653352,674.46,672.79,0.27290034]
[1737932387423,0.86603188,674.45,672.8,0.27290034]
[1737932387626,0.86603188,674.45,672.78,0.27290034]
[1737932387929,0.29654671,674.43,672.79,0.27290034]
[1737932388122,0.29654671,674.43,672.78,0.27290034]
[1737932388530,0.29654671,674.43,672.76,0.27290034]
[1737932388728,0.86603188,674.42,672.76,0.27290034]
[1737932389029,0.86603188,674.41,672.76,0.27290034]
[1737932389527,0.86603188,674.4,672.76,0.27290034]
[1737932390127,0.86603188,674.39,672.76,0.27290034]
[1737932390331,0.29657309,674.37,672.76,0.27290034]
[1737932390732,0.86603188,674.36,672.76,0.27290034]
[1737932391137,0.29658629,674.34,672.76,0.27290034]
[1737932391334,0.29658629,674.34,672.77,0.27290034]
[1737932391528,0.29658629,674.34,672.78,0.27290034]
[1737932391731,0.29658629,674.34,672.64,0.27290034]
[1737932391929,0.86603188,674.33,672.65,0.27290034]
[1737932392235,0.86603188,674.32,672.65,0.27290034]
[1737932392537,0.29660388,674.3,672.66,0.29732703]
[1737932392730,0.29660388,674.3,672.67,0.27290034]
[1737932392930,0.29660388,674.3,672.68,0.57021852]
[1737932393134,0.29660388,674.3,672.69,0.57021411]
[1737932393337,0.86603188,674.29,672.7,0.27290034]
[1737932393537,0.29661708,674.27,672.71,0.27290034]
[1737932393738,0.29661708,674.27,672.72,0.27290034]
[1737932393938,0.29661708,674.27,672.73,0.27290034]
[1737932393939,0.86603188,674.26,672.73,0.27290034]
[1737932394140,0.86603188,674.26,672.74,0.27290034]
[1737932394438,0.86603188,674.26,672.75,0.27290034]
[1737932394636,1.16265776,674.25,672.76,0.27290034]
[1737932394939,0.29663028,674.24,672.77,0.27290034]
[1737932395139,0.86603188,674.23,672.78,0.27290034]
[1737932395440,0.29663907,674.22,672.79,0.27290034]
[1737932395739,0.86603188,674.21,672.8,0.27290034]
[1737932395939,0.86603188,674.2,672.81,0.27290034]
[1737932396139,0.29665227,674.19,672.82,0.27290034]
[1737932396339,0.29665227,674.19,672.83,0.27290034]
[1737932396541,0.86603188,674.18,672.84,0.27290034]
[1737932396745,0.29666107,674.17,672.85,0.27290034]
[1737932396934,0.29666107,674.17,672.86,0.27277215]
[1737932397139,0.86603188,674.16,672.87,0.27277215]
[1737932397442,0.29666988,674.15,672.88,0.27277215]
[1737932397641,0.29666988,674.15,672.89,0.27277215]
[1737932397845,0.86603188,674.14,672.9,0.27277215]
[1737932398040,0.29667868,674.13,672.91,0.27277215]
[1737932398239,0.29667868,674.13,672.92,0.27277215]
[1737932398444,0.29667868,674.13,672.93,0.27277215]
[1737932398946,0.86603188,674.12,672.93,0.27277215]
[1737932399240,0.29669188,674.1,672.93,0.27277215]
[1737932399445,0.29669188,674.1,672.94,0.27277215]
[1737932399641,0.86603188,674.09,672.95,0.27277215]
[1737932399847,0.86603188,674.09,672.96,0.27277215]
[1737932400148,1.08678414,674.97,672.97,0.27277215]
[1737932400149,0.29670508,674.07,672.97,0.27277215]
[1737932400342,0.29670508,674.07,672.98,0.27277215]
[1737932400541,0.86603188,674.06,672.99,0.27277215]
[1737932400947,0.86603188,674.06,672.63,1.10768918]
[1737932400948,0.86603188,674.06,672.64,0.27277215]
[1737932401252,0.86603188,674.05,672.65,0.27277215]
[1737932401452,0.86603188,674.05,672.66,0.27277215]
[1737932401649,0.86603188,674.05,672.64,0.27277215]
[1737932401850,0.86603188,674.05,672.65,0.27277215]
[1737932402055,0.86603188,674.05,672.66,0.27277215]
[1737932402357,0.86603188,674.04,672.67,0.27291539]
[1737932402560,0.86603188,674.04,672.64,0.27291539]
[1737932402762,0.86603188,674.04,672.68,0.27291539]
[1737932402960,0.86603188,674.03,672.69,0.27291539]
[1737932403163,0.86603188,674.03,672.7,0.27291539]
[1737932403463,0.86603188,674.02,672.71,0.27291539]
[1737932403664,0.86603188,674.02,672.64,0.27291539]
[1737932404163,0.86603188,674.02,672.65,0.27297466]
[1737932404361,0.86603188,674.01,672.64,0.27297466]
[1737932404561,0.86603188,674.01,672.65,0.27297466]
[1737932404761,0.86603188,674.01,672.66,0.27297466]
[1737932404956,0.86603188,674.0,672.64,0.27297466]
[1737932405555,0.86603188,673.99,672.64,0.27297466]
[1737932405959,0.86603188,673.98,672.64,0.27297466]
[1737932406559,0.86603188,673.97,672.64,0.27297466]
[1737932407164,0.86603188,673.96,672.64,0.27297466]
[1737932407557,0.86603188,673.95,672.64,0.27297466]
[1737932407763,0.86603188,673.95,672.63,1.10768918]
[1737932408065,0.86603188,673.94,672.64,0.27305002]
[1737932408258,0.86603188,673.94,672.63,1.10768918]
[1737932408464,0.86603188,673.93,672.63,1.10768918]
[1737932408864,0.86603188,673.92,672.63,1.10768918]
[1737932409064,0.86603188,673.91,672.63,1.10768918]
[1737932410665,0.86603188,673.9,672.63,1.10768918]
[1737932410861,0.86603188,673.89,672.63,1.10768918]
[1737932411465,0.86603188,673.88,672.63,1.10768918]
[1737932411968,0.86603188,673.87,672.63,1.10768918]
[1737932412466,0.86603188,673.86,672.63,1.10768918]
[1737932412863,0.86603188,673.85,672.63,1.10768918]
[1737932413161,0.86603188,673.84,672.63,1.10768918]
[1737932413665,0.86603188,673.83,672.63,1.10768918]
[1737932414266,0.29670508,674.07,672.63,1.10768918]
[1737932414267,0.86603188,673.82,672.63,1.10768918]
[1737932414663,0.86603188,673.81,672.63,1.10768918]
[1737932415367,0.29670508,674.07,672.63,1.10768918]
[1737932415368,0.86603188,673.8,672.63,1.10768918]
[1737932415569,0.86603188,673.8,671.18,1.10768918]
[1737932415870,0.86603188,673.79,671.2,0.29797377]
[1737932416067,0.86603188,673.79,671.21,0.27320929]
[1737932416269,0.86603188,673.78,671.22,0.27321072]
[1737932416464,0.86603188,673.78,671.23,0.27321072]
[1737932416667,0.86603188,673.77,671.24,0.27321072]
[1737932416867,0.86603188,673.77,671.2,0.29797377]
[1737932416868,0.86603188,673.77,671.25,0.27321072]
[1737932417071,0.86603188,673.76,671.26,0.27321072]
[1737932417271,0.86603188,673.76,671.27,0.27321072]
[1737932417465,0.86603188,673.75,671.28,0.27321072]
[1737932417666,0.86603188,673.74,671.29,0.27321072]
[1737932417969,0.86603188,673.74,671.3,0.27321072]
[1737932418169,0.86603188,673.74,671.2,0.29797377]
[1737932418170,0.86603188,673.73,671.31,0.27321072]
[1737932418365,0.86603188,673.73,671.32,0.27321072]
[1737932418571,0.86603188,673.73,671.33,0.27321072]
[1737932418769,0.86603188,673.73,671.34,0.27321072]
[1737932419169,0.86603188,673.72,671.34,0.27321072]
[1737932419670,0.86603188,673.71,671.34,0.27321072]
[1737932419867,0.86603188,673.71,671.35,0.27321072]
[1737932420072,0.86603188,673.71,671.36,0.27321072]
[1737932420372,0.86603188,673.7,671.37,0.27321072]
[1737932420571,0.86603188,673.7,671.38,0.27321072]
[1737932420771,0.29670508,674.07,671.39,0.27321072]
[1737932421072,0.29670508,674.07,671.4,0.27321072]
[1737932421572,0.29670508,674.07,671.2,0.29797377]
[1737932421772,0.86093601,674.06,671.41,0.2733647]
[1737932422369,0.86093601,674.05,671.41,0.2733647]
[1737932422771,0.86093601,674.05,671.2,0.29797377]
[1737932422772,0.86093601,674.04,671.42,0.2733647]
[1737932422966,0.86093601,674.04,671.43,0.2733647]
[1737932423170,0.86093601,674.03,671.44,0.2733647]
[1737932423472,0.86093601,674.03,671.45,0.2733647]
[1737932423666,0.86093601,674.02,671.21,0.2733647]
[1737932423867,0.86093601,674.02,671.46,0.2733647]
[1737932424065,0.86093601,674.02,671.47,0.2733647]
[1737932424271,0.86093601,674.01,671.48,0.2733647]
[1737932424571,0.86093601,674.01,671.2,0.29797377]
[1737932424572,0.86093601,674.01,671.49,0.2733647]
[1737932424767,0.86093601,674.0,671.5,0.2733647]
[1737932425173,0.86093601,674.0,671.51,0.2733647]
[1737932425368,0.29670508,674.07,671.52,0.2733647]
[1737932425369,0.86093601,673.99,671.52,0.2733647]
[1737932425770,0.29670508,674.07,671.52,0.2733647]
[1737932425771,0.86093601,673.98,671.52,0.2733647]
[1737932425965,0.86093601,673.97,671.52,0.2733647]
[1737932426569,0.86093601,673.96,671.52,0.2733647]
[1737932427167,0.86093601,673.95,671.52,0.2733647]
[1737932427379,0.86093601,673.95,671.53,0.2733647]
[1737932427574,0.86093601,673.95,671.54,0.99970363]
[1737932427868,0.86093601,673.94,671.55,0.2733647]
[1737932428070,0.86093601,673.93,671.56,0.2733647]
[1737932428269,0.86093601,673.93,671.57,0.2733647]
[1737932428469,0.86093601,673.92,671.58,0.2733647]
[1737932428673,0.86093601,673.92,671.59,0.2733647]
[1737932428873,0.29670508,674.07,671.2,0.29797377]
[1737932428874,0.86093601,673.91,671.6,0.27331764]
[1737932429077,0.86093601,673.91,671.61,0.27331764]
[1737932429377,0.86093601,673.9,671.62,0.27331764]
[1737932429578,0.86093601,673.9,671.63,0.27331764]
[1737932429877,0.86093601,673.89,671.64,0.27331764]
[1737932430077,0.86093601,673.89,671.65,0.27331764]
[1737932430274,0.86093601,673.89,671.66,0.27331764]
[1737932430471,0.86093601,673.88,671.67,0.27331764]
[1737932430674,0.86093601,673.87,671.68,0.27334163]
[1737932430873,0.86093601,673.87,671.69,0.27334163]
[1737932431074,0.86093601,673.86,671.7,0.27334163]
[1737932431275,0.86093601,673.86,671.71,0.27334163]
[1737932431576,0.86093601,673.85,671.72,0.27334163]
[1737932431772,0.86093601,673.84,671.73,0.27334163]
[1737932431972,0.86093601,673.84,671.74,0.27334163]
[1737932432177,0.86093601,673.84,671.75,0.27334163]
[1737932432379,0.86093601,673.83,671.75,0.27334163]
[1737932432778,0.86093601,673.82,671.75,0.27334163]
[1737932433178,0.86093601,673.82,671.76,0.27334163]
[1737932433377,0.86093601,673.82,671.77,0.27334163]
[1737932433580,1.08678414,673.62,671.78,0.27334163]
[1737932433779,1.08678414,673.62,671.2,0.29797377]
[1737932433780,1.08678414,673.62,671.79,0.27334163]
[1737932433975,0.86093601,673.61,671.21,0.27334163]
[1737932434180,0.86093601,673.61,671.22,0.27334163]
[1737932434379,0.86093601,673.61,671.2,0.29797377]
[1737932434380,0.86093601,673.61,671.23,0.27334163]
[1737932434580,0.86093601,673.6,671.24,0.27334163]
[1737932434778,0.86093601,673.6,671.25,0.27334163]
[1737932434975,0.86093601,673.6,671.2,0.29797377]
[1737932435175,0.86093601,673.59,671.21,0.27338988]
[1737932435383,0.86093601,673.59,671.22,0.27338988]
[1737932435581,0.86093601,673.58,671.23,0.27338988]
[1737932436083,0.86093601,673.58,671.24,0.27338988]
[1737932436283,0.86093601,673.57,671.25,0.27338988]
[1737932436481,0.86093601,673.57,671.26,0.27338988]
[1737932436683,0.86093601,673.56,671.27,0.27338988]
[1737932436877,0.86093601,673.56,671.28,0.27338988]
[1737932437084,0.86093601,673.56,671.29,0.27338988]
[1737932437384,0.86093601,673.55,671.3,0.27338988]
[1737932437585,0.86093601,673.54,671.2,0.29797377]
[1737932437779,0.86093601,673.54,671.21,0.27335353]
[1737932437979,0.86093601,673.54,671.22,0.27335353]
[1737932438178,0.86093601,673.54,671.23,0.27335353]
[1737932438381,0.86093601,673.54,671.24,0.27335353]
[1737932438579,0.86093601,673.54,671.25,0.27335353]
[1737932438881,0.86093601,673.54,671.26,0.27333288]
[1737932439082,0.86093601,673.53,671.26,0.27333288]
[1737932439684,0.86093601,673.52,671.26,0.27333288]
[1737932439885,0.86093601,673.52,671.27,0.27333288]
[1737932440079,0.86093601,673.52,671.28,0.27333288]
[1737932440278,1.08678414,673.7,671.29,0.27333288]
[1737932440279,0.86093601,673.51,671.29,0.27333288]
[1737932440483,0.86093601,673.51,671.3,0.27333288]
[1737932440679,0.86093601,673.5,671.31,0.27333288]
[1737932440883,0.86093601,673.5,671.32,0.27333288]
[1737932441079,0.86093601,673.5,671.2,0.29797377]
[1737932441284,0.86093601,673.49,671.21,0.27332917]
[1737932441482,0.86093601,673.49,671.22,0.27332917]
[1737932441785,0.86093601,673.48,671.23,0.27332917]
[1737932441979,0.86093601,673.48,671.24,0.27332917]
[1737932442181,0.86093601,673.48,671.25,0.27332917]
[1737932442384,0.86093601,673.48,671.26,0.27332917]
[1737932442584,0.86093601,673.47,671.27,0.27332917]
[1737932442786,0.86093601,673.47,671.28,0.27332917]
[1737932443085,0.86093601,673.46,671.29,0.27332297]
[1737932443288,0.86093601,673.46,671.3,0.27332297]
[1737932443583,0.86093601,673.45,671.31,0.27332297]
[1737932443784,0.86093601,673.45,671.32,0.27332297]
[1737932443983,0.86093601,673.44,671.33,0.27332297]
[1737932444186,0.86093601,673.44,671.34,0.27332297]
[1737932444484,0.86093601,673.44,671.35,0.27332297]
[1737932444685,0.86093601,673.44,671.24,1.10768918]
[1737932444686,0.86093601,673.44,671.36,0.99957961]
[1737932444886,0.86093601,673.43,671.37,0.99945258]
[1737932445086,0.86093601,673.43,671.38,0.99945258]
[1737932445287,0.86093601,673.43,671.39,0.27328213]
[1737932445478,0.86093601,673.43,671.4,0.27328213]
[1737932445682,0.86093601,673.42,671.4,0.27328213]
[1737932446085,0.86093601,673.42,671.41,0.27328213]
[1737932446287,0.86093601,673.41,671.42,0.27328213]
[1737932446487,0.86093601,673.41,671.51,1.10768918]
[1737932446787,0.86093601,673.41,671.52,0.27328213]
[1737932446986,0.86093601,673.41,671.53,0.27321561]
[1737932447183,0.86093601,673.4,671.54,0.27321561]
[1737932447385,0.86093601,673.4,671.55,0.27321561]
[1737932447583,0.86093601,673.39,671.56,0.27321561]
[1737932447784,0.86093601,673.39,671.57,0.27321561]
[1737932448091,0.86093601,673.38,671.58,0.27321561]
[1737932448289,0.86093601,673.38,671.59,0.27321561]
[1737932448482,0.86093601,673.38,671.6,0.27321561]
[1737932448687,0.86093601,673.37,671.61,0.27321561]
[1737932448887,0.86093601,673.37,671.62,0.27321561]
[1737932449090,0.86093601,673.37,671.63,0.27321561]
[1737932449293,0.86093601,673.36,671.64,0.27321561]
[1737932449488,0.86093601,673.36,671.65,0.27321561]
[1737932449688,0.86093601,673.36,671.66,0.27321561]
[1737932449890,0.86093601,673.35,671.67,0.27321561]
[1737932450089,0.86093601,673.35,671.68,0.27321561]
[1737932450290,0.86093601,673.35,671.8,1.10768918]
[1737932450491,0.86093601,673.35,671.81,0.27321561]
[1737932450691,0.86093601,673.34,671.82,0.27321561]
[1737932450991,0.86093601,673.33,671.83,0.27321561]
[1737932451291,0.86093601,673.33,671.84,0.27321561]
[1737932451491,0.86093601,673.32,671.85,0.27321561]
[1737932451694,0.86093601,673.32,671.86,0.27321561]
[1737932451991,0.86093601,673.31,671.87,0.27321561]
[1737932452194,0.86093601,673.31,671.88,0.27321561]
[1737932452387,0.86093601,673.3,671.88,0.27321561]
[1737932452693,0.86093601,673.3,671.89,0.27321561]
[1737932452895,0.86093601,673.3,671.9,0.27321561]
[1737932453096,0.86093601,673.29,671.91,0.27321561]
[1737932453289,0.86093601,673.29,671.81,0.27321561]
[1737932453493,0.86093601,673.29,671.82,0.27321561]
[1737932453694,0.86093601,673.28,671.83,0.27321561]
[1737932453892,0.86093601,673.28,671.84,0.27321561]
[1737932454205,0.86093601,673.27,671.68,0.27321561]
[1737932454503,0.86093601,673.27,671.69,0.27321561]
[1737932454702,0.86093601,673.26,671.7,0.27321561]
[1737932454902,0.86093601,673.26,671.71,0.27321561]
[1737932455098,0.86093601,673.25,671.72,0.27321561]
[1737932455304,0.86093601,673.25,671.68,0.27321561]
[1737932455497,0.86093601,673.24,671.69,0.27321561]
[1737932455702,0.86093601,673.24,671.68,0.27321561]
[1737932456007,0.2970797,673.22,671.69,0.27321561]
[1737932456199,0.2970797,673.22,671.7,0.27321561]
[1737932456399,0.2970797,673.22,671.71,0.27321561]
[1737932456600,0.86093601,673.21,671.63,0.27321561]
[1737932456801,0.29709294,673.19,671.64,0.27321561]
[1737932457001,0.29709294,673.19,671.65,0.27321561]
[1737932457201,0.29709294,673.19,671.66,0.27321561]
[1737932457202,0.86093601,673.18,671.66,0.27321561]
[1737932457397,0.29710618,673.16,671.67,0.27321561]
[1737932457599,0.29710618,673.16,671.68,0.27321561]
[1737932457803,0.86093601,673.15,671.69,0.27321561]
[1737932457999,0.29711942,673.13,671.7,0.27321561]
[1737932458203,0.86093601,673.12,671.71,0.27321561]
[1737932458399,0.86093601,673.12,671.72,0.27321561]
[1737932458604,0.86093601,673.12,671.73,0.27321561]
[1737932458804,0.86093601,673.11,671.63,0.27321561]
[1737932459003,0.86093601,673.11,671.64,0.27321561]
[1737932459204,0.29713708,673.09,671.65,0.27321561]
[1737932459400,0.29713708,673.09,671.63,0.27321561]
[1737932459600,0.86093601,673.08,671.66,0.27321561]
[1737932459803,0.29715032,673.06,671.67,0.27321561]
[1737932459998,0.29715032,673.06,671.63,0.27321561]
[1737932460199,0.29715032,673.06,671.62,1.10768918]
[1737932460200,0.86093601,673.05,671.64,0.27321561]
[1737932460401,0.86093601,673.05,671.63,0.27321561]
[1737932460603,0.86093601,673.05,671.64,0.27321561]
[1737932460805,0.86093601,673.04,671.63,0.27321561]
[1737932461004,0.86093601,673.04,671.64,0.27321561]
[1737932461200,0.86093601,673.04,671.65,0.2732384]
[1737932461405,0.86093601,673.04,671.66,0.2732384]
[1737932461605,0.86093601,673.03,671.6,0.2732384]
[1737932461808,0.86093601,673.03,671.61,0.2732384]
[1737932462108,1.15810399,673.02,671.62,0.2732384]
[1737932462309,1.15810399,673.02,671.6,0.2732384]
[1737932462604,0.86093601,673.01,671.61,0.2732384]
[1737932463005,0.86093601,673.01,671.62,0.2732384]
[1737932463200,0.86093601,673.01,671.63,0.2732384]
[1737932463406,0.86093601,673.0,671.6,0.2732384]
[1737932463603,0.86093601,673.0,671.61,0.2732384]
[1737932463810,0.86093601,673.0,671.62,0.2732384]
[1737932464110,0.86093601,673.0,671.63,0.2732384]
[1737932464404,0.86093601,672.99,671.64,0.2732384]
[1737932464608,0.86093601,672.99,671.65,0.2732384]
[1737932464802,0.86093601,672.98,671.66,0.2732384]
[1737932465007,0.86093601,672.98,671.58,1.10768918]
[1737932465008,0.86093601,672.98,671.67,0.2732384]
[1737932465202,0.86093601,672.97,671.68,0.57099923]
[1737932465408,0.86093601,672.97,671.69,0.2732384]
[1737932465606,0.86093601,672.97,671.7,0.2732384]
[1737932465802,0.86093601,672.96,671.71,0.2732384]
[1737932466007,0.86093601,672.96,671.72,0.2732384]
[1737932466305,0.86093601,672.95,671.81,1.10768918]
[1737932466510,0.86093601,672.95,671.82,0.2732384]
[1737932467406,0.86093601,672.94,671.82,0.2732384]
[1737932467806,0.86093601,672.93,671.82,0.2732384]
[1737932468306,0.86093601,672.92,671.81,1.10768918]
[1737932468512,0.86093601,672.92,671.82,0.27316702]
[1737932469010,0.86093601,672.91,671.82,0.27316702]
[1737932469405,0.86093601,672.91,671.83,0.27316702]
[1737932469607,0.86093601,672.9,671.84,0.27316702]
[1737932469808,0.86093601,672.9,671.81,0.27316702]
[1737932470008,0.86093601,672.89,671.81,0.27316702]
[1737932470403,0.86093601,672.88,671.81,0.27316702]
[1737932470810,0.86093601,672.87,671.81,0.27316702]
[1737932471410,0.86093601,672.86,671.81,0.27316702]
[1737932471807,0.86093601,672.85,671.79,0.27316702]
[1737932472011,0.86093601,672.85,671.8,0.27317615]
[1737932472210,0.86093601,672.85,671.79,0.27317615]
[1737932472610,0.86093601,672.84,671.79,0.27317615]
[1737932473212,0.86093601,672.83,671.79,0.27317615]
[1737932473711,0.86093601,672.82,671.79,0.27317615]
[1737932473912,0.29726074,672.81,671.8,1.3809276]
[1737932474108,0.86093601,672.8,671.81,0.27323842]
[1737932474504,0.86093601,672.79,671.81,0.27323842]
[1737932475013,0.86093601,672.78,671.81,0.27323842]
[1737932475408,0.86093601,672.77,671.81,0.27323842]
[1737932475611,0.86093601,672.77,671.8,1.10768918]
[1737932475810,0.29726074,672.81,671.81,0.27323524]
[1737932475811,0.86093601,672.76,671.81,0.27323524]
[1737932476312,0.86093601,672.75,671.81,0.27323524]
[1737932476712,0.86093601,672.74,671.81,0.27323524]
[1737932477113,0.86093601,672.73,671.81,0.27323524]
[1737932477416,0.86093601,672.73,671.8,1.10768918]
[1737932477714,0.86093601,672.72,671.81,0.27323984]
[1737932477915,0.86093601,672.71,671.69,0.27323984]
[1737932478117,0.86093601,672.71,671.68,1.40545001]
[1737932478514,0.86093601,672.7,671.69,0.2732054]
[1737932479016,0.86093601,672.7,671.69,0.5709618]
[1737932479216,0.86093601,672.8,671.7,0.2732054]
[1737932479411,0.86093601,672.8,671.71,0.27318274]
[1737932479617,0.86093601,672.8,671.72,0.27318274]
[1737932479818,0.86093601,672.79,671.73,0.27318274]
[1737932480119,0.86093601,672.79,671.74,0.27318274]
[1737932480313,0.86093601,672.78,671.7,0.27318274]
[1737932480520,0.86093601,672.78,671.71,0.27318274]
[1737932480817,0.86093601,672.77,671.72,0.27318274]
[1737932481117,0.86093601,672.8,671.73,0.27318274]
[1737932481317,0.86093601,672.8,671.74,0.27318274]
[1737932481519,0.86093601,672.8,671.75,0.27318274]
[1737932481813,0.86093601,672.8,671.76,0.27318274]
[1737932482017,0.86093601,672.8,671.77,0.27318274]
[1737932482221,0.86093601,672.8,671.7,0.27318274]
[1737932482413,0.86093601,672.8,671.71,0.27318274]
[1737932482617,0.86093601,672.8,671.7,0.27318274]
[1737932482919,0.86093601,672.8,671.71,0.27318274]
[1737932483120,0.86093601,672.8,671.72,0.273187]